[Event "*** Titled Tuesday Blitz"]
[Site "Chess.com"]
[Date "2020.04.07"]
[Round "7"]
[White "VladimirBelous"]
[Black "Flawless_Fighter"]
[Result "1-0"]
[WhiteElo "2763"]
[BlackElo "2565"]
[TimeControl "180+1"]
[EndTime "14:17:58 PDT"]
[Termination "VladimirBelous won by resignation"]

1. c4 {[%clk 0:03:00.7]} 1... Nf6 {[%clk 0:02:59.8]} 2. Nc3 {[%clk 0:03:00.7]}
2... e6 {[%clk 0:03:00.4]} 3. d4 {[%clk 0:02:57.6]} 3... d5 {[%clk 0:03:01.3]}
4. Nf3 {[%clk 0:02:58.2]} 4... Bb4 {[%clk 0:03:00.8]} 5. Bg5 {[%clk 0:02:58]}
5... h6 {[%clk 0:03:00.3]} 6. Bxf6 {[%clk 0:02:57.8]} 6... Qxf6 {[%clk
0:03:01.2]} 7. e3 {[%clk 0:02:56.6]} 7... O-O {[%clk 0:03:01.1]} 8. Rc1 {[%clk
0:02:54.2]} 8... Rd8 {[%clk 0:02:59.8]} 9. cxd5 {[%clk 0:02:51]} 9... exd5
{[%clk 0:02:58.4]} 10. Qb3 {[%clk 0:02:51.5]} 10... Qe7 {[%clk 0:02:53.6]} 11.
a3 {[%clk 0:02:49.3]} 11... Ba5 {[%clk 0:02:49.6]} 12. Bd3 {[%clk 0:02:40.9]}
12... c6 {[%clk 0:02:49.8]} 13. O-O {[%clk 0:02:39.3]} 13... Nd7 {[%clk
0:02:47.7]} 14. Qa4 {[%clk 0:02:29.5]} 14... Bxc3 {[%clk 0:02:33.3]} 15. bxc3
{[%clk 0:02:26.8]} 15... Nf6 {[%clk 0:02:32.7]} 16. c4 {[%clk 0:02:25.5]} 16...
Be6 {[%clk 0:02:24.4]} 17. Qb4 {[%clk 0:02:17.7]} 17... Qxb4 {[%clk 0:02:12.2]}
18. axb4 {[%clk 0:02:18.6]} 18... dxc4 {[%clk 0:02:12.4]} 19. Bxc4 {[%clk
0:02:18.7]} 19... Bxc4 {[%clk 0:02:09.9]} 20. Rxc4 {[%clk 0:02:18.3]} 20... a5
{[%clk 0:02:10.5]} 21. bxa5 {[%clk 0:02:17.7]} 21... Rxa5 {[%clk 0:02:09.9]} 22.
Rb1 {[%clk 0:02:16.7]} 22... Rda8 {[%clk 0:02:02.3]} 23. h3 {[%clk 0:02:12.7]}
23... Ra1 {[%clk 0:01:55.9]} 24. Rb4 {[%clk 0:02:13]} 24... Rxb1+ {[%clk
0:01:53.2]} 25. Rxb1 {[%clk 0:02:13.9]} 25... Ne4 {[%clk 0:01:51.4]} 26. Rxb7
{[%clk 0:02:06.6]} 26... Ra1+ {[%clk 0:01:50.8]} 27. Kh2 {[%clk 0:02:07.2]}
27... Nxf2 {[%clk 0:01:50.1]} 28. Ne5 {[%clk 0:02:07.6]} 28... Rh1+ {[%clk
0:01:40.4]} 29. Kg3 {[%clk 0:02:06.6]} 29... Ne4+ {[%clk 0:01:41]} 30. Kf4
{[%clk 0:02:01.9]} 30... Nd6 {[%clk 0:01:33.2]} 31. Rb8+ {[%clk 0:01:57.5]}
31... Kh7 {[%clk 0:01:33.6]} 32. Nxc6 {[%clk 0:01:56.7]} 32... Rf1+ {[%clk
0:01:29.6]} 33. Ke5 {[%clk 0:01:56.6]} 33... Nc4+ {[%clk 0:01:29.8]} 34. Ke4
{[%clk 0:01:56.6]} 34... Re1 {[%clk 0:01:29.1]} 35. d5 {[%clk 0:01:44.2]} 35...
Nxe3 {[%clk 0:01:25.3]} 36. d6 {[%clk 0:01:44]} 36... Nc4+ {[%clk 0:01:16.6]}
37. Kd5 {[%clk 0:01:43.4]} 37... Nxd6 {[%clk 0:01:11]} 38. Kxd6 {[%clk
0:01:43.3]} 38... Re2 {[%clk 0:01:11.1]} 39. g4 {[%clk 0:01:27.8]} 39... h5
{[%clk 0:00:35.5]} 40. Rb5 {[%clk 0:01:02.1]} 40... hxg4 {[%clk 0:00:34.4]} 41.
hxg4 {[%clk 0:01:03]} 41... Re4 {[%clk 0:00:29.9]} 42. Rh5+ {[%clk 0:01:00.7]}
42... Kg6 {[%clk 0:00:20.5]} 43. Ne5+ {[%clk 0:01:00.5]} 43... Rxe5 {[%clk
0:00:16.9]} 44. Kxe5 {[%clk 0:01:00.6]} 1-0

[Event "*** Titled Tuesday Blitz"]
[Site "Chess.com"]
[Date "2020.04.07"]
[Round "7"]
[White "Witik"]
[Black "Shtembuliak"]
[Result "0-1"]
[WhiteElo "2707"]
[BlackElo "2860"]
[TimeControl "180+1"]
[EndTime "14:18:01 PDT"]
[Termination "Shtembuliak won on time"]

1. d4 {[%clk 0:03:00.9]} 1... g6 {[%clk 0:02:59.3]} 2. e4 {[%clk 0:03:00.5]}
2... d6 {[%clk 0:02:59.1]} 3. Nc3 {[%clk 0:03:01]} 3... Bg7 {[%clk 0:02:59.2]}
4. Be3 {[%clk 0:02:58.8]} 4... a6 {[%clk 0:02:59.2]} 5. f4 {[%clk 0:02:58.6]}
5... b5 {[%clk 0:02:55.9]} 6. Nf3 {[%clk 0:02:59.1]} 6... Nd7 {[%clk 0:02:52.4]}
7. Bd3 {[%clk 0:02:37.8]} 7... Bb7 {[%clk 0:02:52.3]} 8. e5 {[%clk 0:02:37.4]}
8... Nh6 {[%clk 0:02:42.3]} 9. Be4 {[%clk 0:02:35.6]} 9... Bxe4 {[%clk
0:02:42.4]} 10. Nxe4 {[%clk 0:02:36.4]} 10... c5 {[%clk 0:02:41.6]} 11. e6
{[%clk 0:01:57.7]} 11... fxe6 {[%clk 0:02:38.2]} 12. Neg5 {[%clk 0:01:55.9]}
12... Nf5 {[%clk 0:02:05.9]} 13. Bf2 {[%clk 0:01:54]} 13... Qa5+ {[%clk
0:02:03.3]} 14. c3 {[%clk 0:01:43.3]} 14... cxd4 {[%clk 0:01:54.3]} 15. Nxe6
{[%clk 0:01:29.3]} 15... dxc3 {[%clk 0:01:50.9]} 16. O-O {[%clk 0:01:22.2]}
16... cxb2 {[%clk 0:01:48.9]} 17. Rb1 {[%clk 0:01:22.3]} 17... Bf6 {[%clk
0:01:23.2]} 18. Qd5 {[%clk 0:01:11.9]} 18... Rc8 {[%clk 0:00:48.8]} 19. g4
{[%clk 0:00:41.5]} 19... Ng7 {[%clk 0:00:49.2]} 20. g5 {[%clk 0:00:30.4]} 20...
Bc3 {[%clk 0:00:49.1]} 21. Nfd4 {[%clk 0:00:24.8]} 21... Nxe6 {[%clk 0:00:45.7]}
22. Nxe6 {[%clk 0:00:24]} 22... Qa4 {[%clk 0:00:42.3]} 23. Qb7 {[%clk
0:00:22.4]} 23... Qc4 {[%clk 0:00:41]} 24. f5 {[%clk 0:00:16.1]} 24... gxf5
{[%clk 0:00:31.4]} 25. Nf4 {[%clk 0:00:02.7]} 25... Qc6 {[%clk 0:00:27.7]} 0-1

[Event "*** Titled Tuesday Blitz"]
[Site "Chess.com"]
[Date "2020.04.07"]
[Round "7"]
[White "AndrewMaco"]
[Black "Agent-JL"]
[Result "0-1"]
[WhiteElo "2607"]
[BlackElo "2438"]
[TimeControl "180+1"]
[EndTime "14:18:05 PDT"]
[Termination "Agent-JL won by checkmate"]

1. e4 {[%clk 0:03:00.9]} 1... c5 {[%clk 0:02:57.2]} 2. Nf3 {[%clk 0:02:52.6]}
2... e6 {[%clk 0:02:51.4]} 3. g3 {[%clk 0:02:49.5]} 3... Nc6 {[%clk 0:02:50.9]}
4. Bg2 {[%clk 0:02:47.4]} 4... d5 {[%clk 0:02:45.1]} 5. exd5 {[%clk 0:02:42.1]}
5... exd5 {[%clk 0:02:44]} 6. d4 {[%clk 0:02:42.3]} 6... Nf6 {[%clk 0:02:40.1]}
7. O-O {[%clk 0:02:39.9]} 7... cxd4 {[%clk 0:02:35.4]} 8. Nxd4 {[%clk
0:02:37.9]} 8... Be7 {[%clk 0:02:34.7]} 9. Nc3 {[%clk 0:02:34.9]} 9... O-O
{[%clk 0:02:27.3]} 10. Bf4 {[%clk 0:02:29.4]} 10... Re8 {[%clk 0:02:24.2]} 11.
Ndb5 {[%clk 0:02:18.5]} 11... Bg4 {[%clk 0:01:56.3]} 12. Qd2 {[%clk 0:02:05.8]}
12... Rc8 {[%clk 0:01:33.6]} 13. Nxd5 {[%clk 0:01:49.2]} 13... Nxd5 {[%clk
0:01:29.1]} 14. Qxd5 {[%clk 0:01:43.3]} 14... Qxd5 {[%clk 0:01:27]} 15. Bxd5
{[%clk 0:01:44.2]} 15... Nb4 {[%clk 0:01:23.3]} 16. Bxb7 {[%clk 0:01:37.7]}
16... Rxc2 {[%clk 0:01:18.6]} 17. Nxa7 {[%clk 0:01:29.1]} 17... Rxb2 {[%clk
0:01:17.3]} 18. Rfb1 {[%clk 0:01:26.2]} 18... Rxa2 {[%clk 0:01:14]} 19. Rxa2
{[%clk 0:01:20]} 19... Nxa2 {[%clk 0:01:14.9]} 20. Nc6 {[%clk 0:01:12.2]} 20...
Bf6 {[%clk 0:01:09.6]} 21. Be3 {[%clk 0:00:57.2]} 21... Nc3 {[%clk 0:01:04.7]}
22. Rb3 {[%clk 0:00:55.5]} 22... Bh3 {[%clk 0:00:49.5]} 23. Na5 {[%clk 0:00:45]}
23... Rd8 {[%clk 0:00:30.7]} 24. Bf3 {[%clk 0:00:44.9]} 24... g6 {[%clk
0:00:25.3]} 25. Nc6 {[%clk 0:00:41.5]} 25... Rd3 {[%clk 0:00:20.4]} 26. Rb8+
{[%clk 0:00:24]} 26... Kg7 {[%clk 0:00:19.2]} 27. Nb4 {[%clk 0:00:23.6]} 27...
Rd7 {[%clk 0:00:16.3]} 28. Rb7 {[%clk 0:00:20.5]} 28... Ne2+ {[%clk 0:00:14.7]}
29. Kh1 {[%clk 0:00:19.7]} 29... Rd1# {[%clk 0:00:14.4]} 0-1

[Event "*** Titled Tuesday Blitz"]
[Site "Chess.com"]
[Date "2020.04.07"]
[Round "7"]
[White "Slovak_fighter2000"]
[Black "JiangoFett"]
[Result "1-0"]
[WhiteElo "2489"]
[BlackElo "2307"]
[TimeControl "180+1"]
[EndTime "14:18:05 PDT"]
[Termination "Slovak_fighter2000 won on time"]

1. d4 {[%clk 0:03:00.9]} 1... Nf6 {[%clk 0:03:00]} 2. Nf3 {[%clk 0:02:59.3]}
2... e6 {[%clk 0:03:00.1]} 3. Bf4 {[%clk 0:02:58.6]} 3... c5 {[%clk 0:03:00.3]}
4. e3 {[%clk 0:02:58.1]} 4... Nc6 {[%clk 0:03:00.7]} 5. Nbd2 {[%clk 0:02:56]}
5... d5 {[%clk 0:02:55.8]} 6. c3 {[%clk 0:02:54.6]} 6... Bd6 {[%clk 0:02:50.4]}
7. Bg3 {[%clk 0:02:54.2]} 7... O-O {[%clk 0:02:49.9]} 8. Bd3 {[%clk 0:02:53.8]}
8... b6 {[%clk 0:02:46.7]} 9. Qe2 {[%clk 0:02:52.7]} 9... Bb7 {[%clk 0:02:43.8]}
10. Rd1 {[%clk 0:02:52.5]} 10... Re8 {[%clk 0:02:40.3]} 11. e4 {[%clk
0:02:52.1]} 11... e5 {[%clk 0:02:35.4]} 12. dxc5 {[%clk 0:02:42.7]} 12... bxc5
{[%clk 0:02:31.3]} 13. exd5 {[%clk 0:02:40.6]} 13... Nxd5 {[%clk 0:02:15.6]} 14.
Bxh7+ {[%clk 0:01:47]} 14... Kxh7 {[%clk 0:02:09]} 15. Qe4+ {[%clk 0:01:46.7]}
15... f5 {[%clk 0:02:04.5]} 16. Qxd5 {[%clk 0:01:42.5]} 16... e4 {[%clk
0:01:30.7]} 17. Qxf5+ {[%clk 0:01:13.4]} 17... Kg8 {[%clk 0:01:23.4]} 18. Ng5
{[%clk 0:01:10.9]} 18... Qf6 {[%clk 0:00:16.1]} 19. Qd5+ {[%clk 0:00:42.1]}
19... Kh8 {[%clk 0:00:08.2]} 20. Nf7+ {[%clk 0:00:35.1]} 20... Kh7 {[%clk
0:00:06.6]} 21. Nxd6 {[%clk 0:00:31.5]} 21... e3 {[%clk 0:00:03.5]} 22. O-O
{[%clk 0:00:26.5]} 22... e2 {[%clk 0:00:02.6]} 23. Nxe8 {[%clk 0:00:25.6]} 23...
Rxe8 {[%clk 0:00:02.6]} 24. Qh5+ {[%clk 0:00:24.9]} 24... Kg8 {[%clk 0:00:02.4]}
25. Qxe8+ {[%clk 0:00:24.8]} 25... Kh7 {[%clk 0:00:02.6]} 26. Qxe2 {[%clk
0:00:25.1]} 1-0

[Event "*** Titled Tuesday Blitz"]
[Site "Chess.com"]
[Date "2020.04.07"]
[Round "7"]
[White "joppie2"]
[Black "OK97"]
[Result "1-0"]
[WhiteElo "3008"]
[BlackElo "2751"]
[TimeControl "180+1"]
[EndTime "14:18:06 PDT"]
[Termination "joppie2 won by resignation"]

1. e4 {[%clk 0:03:00.9]} 1... c5 {[%clk 0:02:59.4]} 2. Nf3 {[%clk 0:03:00.7]}
2... Nc6 {[%clk 0:02:59.1]} 3. c3 {[%clk 0:02:59.5]} 3... Nf6 {[%clk 0:02:56.4]}
4. e5 {[%clk 0:02:59.9]} 4... Nd5 {[%clk 0:02:56.5]} 5. Bc4 {[%clk 0:03:00.3]}
5... Nb6 {[%clk 0:02:56.4]} 6. Bb3 {[%clk 0:03:00.5]} 6... d5 {[%clk 0:02:49.4]}
7. exd6 {[%clk 0:03:01.4]} 7... Qxd6 {[%clk 0:02:47.4]} 8. O-O {[%clk
0:03:01.8]} 8... Be6 {[%clk 0:02:47.9]} 9. Bxe6 {[%clk 0:03:01.6]} 9... Qxe6
{[%clk 0:02:48]} 10. a4 {[%clk 0:03:02.5]} 10... Qd7 {[%clk 0:02:45]} 11. a5
{[%clk 0:03:03]} 11... Nd5 {[%clk 0:02:45.3]} 12. a6 {[%clk 0:03:03.6]} 12... b6
{[%clk 0:02:45.4]} 13. d4 {[%clk 0:03:04.2]} 13... cxd4 {[%clk 0:02:45.6]} 14.
Nxd4 {[%clk 0:03:05.1]} 14... e6 {[%clk 0:02:43.3]} 15. Nb5 {[%clk 0:03:05.7]}
15... Rd8 {[%clk 0:02:28.8]} 16. Qg4 {[%clk 0:03:03.4]} 16... Ne5 {[%clk
0:02:20.1]} 17. Qa4 {[%clk 0:03:03]} 17... Bc5 {[%clk 0:01:33.5]} 18. Nxa7
{[%clk 0:02:58.3]} 18... Qxa4 {[%clk 0:01:33.5]} 19. Rxa4 {[%clk 0:02:59.2]}
19... Nd3 {[%clk 0:01:33.8]} 20. b4 {[%clk 0:02:35.4]} 20... Bxf2+ {[%clk
0:01:24.8]} 21. Rxf2 {[%clk 0:02:34.2]} 21... Nxc1 {[%clk 0:01:25]} 22. Nc6
{[%clk 0:02:24.9]} 22... Rc8 {[%clk 0:01:03.5]} 23. a7 {[%clk 0:02:14.5]} 23...
O-O {[%clk 0:01:03.5]} 24. c4 {[%clk 0:02:07.4]} 24... Rxc6 {[%clk 0:00:53.5]}
25. a8=Q {[%clk 0:02:00.6]} 25... Rxc4 {[%clk 0:00:53.3]} 26. Qa6 {[%clk
0:01:55.4]} 26... Rc7 {[%clk 0:00:41.5]} 27. h3 {[%clk 0:01:49.4]} 27... h6
{[%clk 0:00:35.2]} 28. Kh2 {[%clk 0:01:45.6]} 28... Rfc8 {[%clk 0:00:35.1]} 29.
Nd2 {[%clk 0:01:41.4]} 29... Rc2 {[%clk 0:00:27.4]} 30. Ne4 {[%clk 0:01:40.6]}
30... Ne3 {[%clk 0:00:22.4]} 31. Ra1 {[%clk 0:01:21.1]} 31... Nb3 {[%clk
0:00:20.3]} 32. Re1 {[%clk 0:01:14.5]} 32... Nf5 {[%clk 0:00:17.5]} 33. Rxc2
{[%clk 0:01:12]} 33... Rxc2 {[%clk 0:00:18.4]} 34. Re2 {[%clk 0:01:11.3]} 34...
Rc1 {[%clk 0:00:15.5]} 35. Qxb6 {[%clk 0:01:07.8]} 35... Nbd4 {[%clk 0:00:15.9]}
36. Rd2 {[%clk 0:01:07.9]} 36... e5 {[%clk 0:00:15.9]} 37. Qb8+ {[%clk
0:01:08.5]} 37... Kh7 {[%clk 0:00:15.6]} 38. Qxe5 {[%clk 0:01:09.4]} 38... Ne3
{[%clk 0:00:08.9]} 39. Nf6+ {[%clk 0:01:06]} 39... gxf6 {[%clk 0:00:08.4]} 40.
Qxe3 {[%clk 0:01:06.9]} 1-0

[Event "*** Titled Tuesday Blitz"]
[Site "Chess.com"]
[Date "2020.04.07"]
[Round "7"]
[White "LittlePeasant"]
[Black "MiroMiljkovic"]
[Result "1-0"]
[WhiteElo "2784"]
[BlackElo "2600"]
[TimeControl "180+1"]
[EndTime "14:18:08 PDT"]
[Termination "LittlePeasant won by resignation"]

1. d4 {[%clk 0:03:00.9]} 1... Nf6 {[%clk 0:02:59.2]} 2. c4 {[%clk 0:03:01.8]}
2... e6 {[%clk 0:02:56.3]} 3. Nc3 {[%clk 0:03:02.4]} 3... Bb4 {[%clk 0:02:54.7]}
4. e3 {[%clk 0:03:03]} 4... O-O {[%clk 0:02:54.1]} 5. Nf3 {[%clk 0:03:02.9]}
5... d5 {[%clk 0:02:53.6]} 6. Bd2 {[%clk 0:03:03.4]} 6... b6 {[%clk 0:02:50.7]}
7. Rc1 {[%clk 0:03:03.1]} 7... dxc4 {[%clk 0:02:49.7]} 8. Bxc4 {[%clk
0:03:02.7]} 8... Bb7 {[%clk 0:02:49.7]} 9. O-O {[%clk 0:03:02.8]} 9... Nbd7
{[%clk 0:02:49.2]} 10. Qa4 {[%clk 0:03:00.8]} 10... Be7 {[%clk 0:01:32]} 11. Ba6
{[%clk 0:02:59.4]} 11... Bxa6 {[%clk 0:01:21]} 12. Qxa6 {[%clk 0:02:59.1]} 12...
c5 {[%clk 0:01:21.9]} 13. Rfd1 {[%clk 0:02:55.7]} 13... Qc8 {[%clk 0:01:21.7]}
14. Qa4 {[%clk 0:02:50.2]} 14... Qb7 {[%clk 0:01:18.7]} 15. e4 {[%clk
0:02:31.5]} 15... cxd4 {[%clk 0:01:14.5]} 16. Qxd4 {[%clk 0:02:24.4]} 16... Bc5
{[%clk 0:01:08.5]} 17. Qa4 {[%clk 0:02:24.3]} 17... Ng4 {[%clk 0:01:07]} 18. Be1
{[%clk 0:02:24.3]} 18... Nde5 {[%clk 0:01:02.3]} 19. b4 {[%clk 0:02:21.7]} 19...
Be7 {[%clk 0:00:54.6]} 20. Nd4 {[%clk 0:02:12.6]} 20... Rac8 {[%clk 0:00:33.1]}
21. h3 {[%clk 0:02:12]} 21... Nf6 {[%clk 0:00:32.2]} 22. f3 {[%clk 0:02:07]}
22... Rfd8 {[%clk 0:00:28.6]} 23. Bg3 {[%clk 0:01:57.5]} 23... Ng6 {[%clk
0:00:23.7]} 24. Nce2 {[%clk 0:01:48]} 24... Nh5 {[%clk 0:00:14.5]} 25. Bh2
{[%clk 0:01:28.6]} 25... Rxc1 {[%clk 0:00:13.5]} 26. Rxc1 {[%clk 0:01:27.6]}
26... Bg5 {[%clk 0:00:14]} 27. Rc7 {[%clk 0:01:20.8]} 27... Qa8 {[%clk
0:00:11.3]} 28. Nc6 {[%clk 0:00:51.8]} 28... Be3+ {[%clk 0:00:11.7]} 29. Kf1
{[%clk 0:00:52.2]} 29... Rc8 {[%clk 0:00:09.2]} 30. Qxa7 {[%clk 0:00:49.5]}
30... Qxc6 {[%clk 0:00:07.7]} 31. Rxc6 {[%clk 0:00:48.3]} 31... Rd8 {[%clk
0:00:07.2]} 32. Rd6 {[%clk 0:00:43.7]} 32... Rc8 {[%clk 0:00:07]} 33. Qb7 {[%clk
0:00:41.6]} 1-0

[Event "*** Titled Tuesday Blitz"]
[Site "Chess.com"]
[Date "2020.04.07"]
[Round "7"]
[White "DanielRensch"]
[Black "fmshawnrl123"]
[Result "1-0"]
[WhiteElo "2559"]
[BlackElo "2715"]
[TimeControl "180+1"]
[EndTime "14:18:09 PDT"]
[Termination "DanielRensch won on time"]

1. e4 {[%clk 0:03:00.9]} 1... c6 {[%clk 0:02:54.1]} 2. d4 {[%clk 0:03:00.8]}
2... d5 {[%clk 0:02:55]} 3. exd5 {[%clk 0:03:01.6]} 3... cxd5 {[%clk 0:02:50]}
4. c4 {[%clk 0:03:01.8]} 4... Nf6 {[%clk 0:02:49.5]} 5. Nc3 {[%clk 0:03:00.5]}
5... Nc6 {[%clk 0:02:48.3]} 6. Bg5 {[%clk 0:02:59.6]} 6... dxc4 {[%clk
0:02:45.5]} 7. Bxc4 {[%clk 0:02:55.5]} 7... e6 {[%clk 0:02:44]} 8. Nf3 {[%clk
0:02:54.8]} 8... Be7 {[%clk 0:02:42.7]} 9. O-O {[%clk 0:02:53.9]} 9... O-O
{[%clk 0:02:42]} 10. Re1 {[%clk 0:02:53.3]} 10... b6 {[%clk 0:02:40.6]} 11. a3
{[%clk 0:02:52.7]} 11... Bb7 {[%clk 0:02:40.1]} 12. Rc1 {[%clk 0:02:52.3]} 12...
Rc8 {[%clk 0:02:40.5]} 13. Ba2 {[%clk 0:02:52.1]} 13... Na5 {[%clk 0:02:27.6]}
14. Ne5 {[%clk 0:02:47.6]} 14... Nd7 {[%clk 0:02:16.7]} 15. Bxe7 {[%clk
0:02:22.4]} 15... Qxe7 {[%clk 0:02:17.6]} 16. Nxf7 {[%clk 0:02:22.9]} 16... Rxf7
{[%clk 0:02:14.8]} 17. Rxe6 {[%clk 0:02:22.2]} 17... Qh4 {[%clk 0:02:09.3]} 18.
Re2 {[%clk 0:02:17.3]} 18... Nc4 {[%clk 0:02:06.6]} 19. Qa4 {[%clk 0:01:53.9]}
19... Qg4 {[%clk 0:01:59.8]} 20. f3 {[%clk 0:01:37]} 20... Bxf3 {[%clk
0:01:53.2]} 21. Bxc4 {[%clk 0:01:32.3]} 21... Bxe2 {[%clk 0:01:45.6]} 22. Bxf7+
{[%clk 0:01:22.5]} 22... Kxf7 {[%clk 0:01:39.7]} 23. Nxe2 {[%clk 0:01:23.4]}
23... Re8 {[%clk 0:00:33.8]} 24. h3 {[%clk 0:00:54.1]} 24... Qxe2 {[%clk
0:00:26.5]} 25. Qxd7+ {[%clk 0:00:52.4]} 25... Kg8 {[%clk 0:00:24.8]} 26. Rc7
{[%clk 0:00:23.9]} 26... Qe3+ {[%clk 0:00:06.6]} 27. Kh1 {[%clk 0:00:22.2]} 1-0

[Event "*** Titled Tuesday Blitz"]
[Site "Chess.com"]
[Date "2020.04.07"]
[Round "7"]
[White "kuli4ik"]
[Black "sofaceindisguise"]
[Result "1-0"]
[WhiteElo "2789"]
[BlackElo "2652"]
[TimeControl "180+1"]
[EndTime "14:18:10 PDT"]
[Termination "kuli4ik won by resignation"]

1. d4 {[%clk 0:02:59.9]} 1... Nf6 {[%clk 0:02:59.6]} 2. Bg5 {[%clk 0:02:59.3]}
2... d5 {[%clk 0:02:56.8]} 3. Nf3 {[%clk 0:02:56.2]} 3... Nbd7 {[%clk
0:02:56.5]} 4. e3 {[%clk 0:02:53.8]} 4... e6 {[%clk 0:02:55.3]} 5. Bd3 {[%clk
0:02:48.6]} 5... c5 {[%clk 0:02:55.1]} 6. c3 {[%clk 0:02:48.4]} 6... Qc7 {[%clk
0:02:55.2]} 7. Nbd2 {[%clk 0:02:43.8]} 7... Bd6 {[%clk 0:02:55]} 8. Qe2 {[%clk
0:02:40.7]} 8... b6 {[%clk 0:02:54.7]} 9. e4 {[%clk 0:02:36.2]} 9... dxe4 {[%clk
0:02:52.9]} 10. Nxe4 {[%clk 0:02:37.1]} 10... Nxe4 {[%clk 0:02:52.8]} 11. Bxe4
{[%clk 0:02:37.6]} 11... Bb7 {[%clk 0:02:52.5]} 12. Bxb7 {[%clk 0:02:32.3]}
12... Qxb7 {[%clk 0:02:52.6]} 13. dxc5 {[%clk 0:02:27.8]} 13... Bxc5 {[%clk
0:02:50.3]} 14. O-O {[%clk 0:02:26.5]} 14... O-O {[%clk 0:02:50.2]} 15. Rad1
{[%clk 0:02:26]} 15... Rfe8 {[%clk 0:02:49.4]} 16. Rd2 {[%clk 0:02:21.5]} 16...
h6 {[%clk 0:02:47.7]} 17. Rfd1 {[%clk 0:02:18.6]} 17... Nf8 {[%clk 0:02:45.5]}
18. Be3 {[%clk 0:02:16]} 18... Be7 {[%clk 0:02:34.8]} 19. Ne5 {[%clk 0:02:07.9]}
19... Red8 {[%clk 0:02:34.7]} 20. Qg4 {[%clk 0:02:00.8]} 20... Rxd2 {[%clk
0:02:22.9]} 21. Rxd2 {[%clk 0:01:57.8]} 21... Bf6 {[%clk 0:02:23.1]} 22. Qf3
{[%clk 0:01:26.5]} 22... Qxf3 {[%clk 0:02:17.5]} 23. Nxf3 {[%clk 0:01:25.9]}
23... Rd8 {[%clk 0:02:17.1]} 24. Rxd8 {[%clk 0:01:24.4]} 24... Bxd8 {[%clk
0:02:18]} 25. Nd4 {[%clk 0:01:24.8]} 25... Bc7 {[%clk 0:02:06.4]} 26. Nc6 {[%clk
0:01:23.6]} 26... a6 {[%clk 0:01:52.9]} 27. Nb4 {[%clk 0:00:51.5]} 27... a5
{[%clk 0:01:49.9]} 28. Na6 {[%clk 0:00:49.9]} 28... Bd8 {[%clk 0:01:49.7]} 29.
Nb8 {[%clk 0:00:47.1]} 29... Bc7 {[%clk 0:01:43.4]} 30. Na6 {[%clk 0:00:45.3]}
30... Bd8 {[%clk 0:01:43.5]} 31. c4 {[%clk 0:00:39.6]} 31... Nd7 {[%clk
0:01:43.1]} 32. c5 {[%clk 0:00:34.9]} 32... bxc5 {[%clk 0:01:42.1]} 33. Nxc5
{[%clk 0:00:35.8]} 33... Ne5 {[%clk 0:01:31.3]} 34. Nb7 {[%clk 0:00:28.4]} 34...
Bc7 {[%clk 0:01:25]} 35. Bf4 {[%clk 0:00:28.5]} 35... a4 {[%clk 0:01:25]} 36.
Nc5 {[%clk 0:00:27.5]} 36... a3 {[%clk 0:01:20.6]} 37. bxa3 {[%clk 0:00:26.9]}
37... Nf3+ {[%clk 0:01:17.1]} 38. gxf3 {[%clk 0:00:27]} 38... Bxf4 {[%clk
0:01:18]} 39. a4 {[%clk 0:00:26.7]} 39... Bd2 {[%clk 0:01:17.8]} 40. Nb7 {[%clk
0:00:20]} 40... Bc3 {[%clk 0:01:13]} 41. a5 {[%clk 0:00:20.2]} 41... Kf8 {[%clk
0:01:13.5]} 42. a6 {[%clk 0:00:20.5]} 42... Bd4 {[%clk 0:01:13.8]} 43. Nd8
{[%clk 0:00:19.2]} 43... Ke8 {[%clk 0:01:07.8]} 44. Nc6 {[%clk 0:00:19.1]} 44...
Bb6 {[%clk 0:01:08.7]} 45. a7 {[%clk 0:00:19.4]} 45... Bxa7 {[%clk 0:01:09.2]}
46. Nxa7 {[%clk 0:00:19.7]} 1-0

[Event "*** Titled Tuesday Blitz"]
[Site "Chess.com"]
[Date "2020.04.07"]
[Round "7"]
[White "TwentyHourADay"]
[Black "csati17"]
[Result "1-0"]
[WhiteElo "2335"]
[BlackElo "2457"]
[TimeControl "180+1"]
[EndTime "14:18:10 PDT"]
[Termination "TwentyHourADay won on time"]

1. Nf3 {[%clk 0:03:00.9]} 1... Nf6 {[%clk 0:02:59.7]} 2. g3 {[%clk 0:03:00.8]}
2... d5 {[%clk 0:02:56.6]} 3. Bg2 {[%clk 0:03:00.7]} 3... c6 {[%clk 0:02:57.5]}
4. O-O {[%clk 0:03:00.4]} 4... Bg4 {[%clk 0:02:58.1]} 5. c4 {[%clk 0:03:00.9]}
5... Nbd7 {[%clk 0:02:57.7]} 6. d3 {[%clk 0:03:00]} 6... e5 {[%clk 0:02:56.9]}
7. h3 {[%clk 0:02:57.6]} 7... Bh5 {[%clk 0:02:51.9]} 8. Qc2 {[%clk 0:02:52.1]}
8... Be7 {[%clk 0:02:47]} 9. Nbd2 {[%clk 0:02:50]} 9... O-O {[%clk 0:02:45.1]}
10. b3 {[%clk 0:02:49.8]} 10... h6 {[%clk 0:02:23]} 11. Nh4 {[%clk 0:02:47.3]}
11... Bxe2 {[%clk 0:02:11.6]} 12. Re1 {[%clk 0:02:46.2]} 12... Bh5 {[%clk
0:02:11.6]} 13. Nf5 {[%clk 0:02:38.8]} 13... Bg6 {[%clk 0:02:00.6]} 14. Nxe7+
{[%clk 0:02:27.5]} 14... Qxe7 {[%clk 0:02:01.5]} 15. Bb2 {[%clk 0:02:25.3]}
15... Rfe8 {[%clk 0:01:53.4]} 16. Nf3 {[%clk 0:02:21.9]} 16... Qd6 {[%clk
0:01:34.5]} 17. Qd2 {[%clk 0:02:21]} 17... d4 {[%clk 0:01:34.6]} 18. b4 {[%clk
0:02:17]} 18... c5 {[%clk 0:01:14]} 19. Nh4 {[%clk 0:02:12.9]} 19... Bh7 {[%clk
0:01:10.6]} 20. a3 {[%clk 0:02:12.6]} 20... Rab8 {[%clk 0:01:08.6]} 21. Re2
{[%clk 0:02:09.6]} 21... g5 {[%clk 0:01:03.9]} 22. Nf3 {[%clk 0:02:08.8]} 22...
e4 {[%clk 0:01:04.2]} 23. bxc5 {[%clk 0:02:02.5]} 23... Nxc5 {[%clk 0:01:01.9]}
24. Nxd4 {[%clk 0:01:59.4]} 24... exd3 {[%clk 0:01:01.8]} 25. Rxe8+ {[%clk
0:01:54.7]} 25... Rxe8 {[%clk 0:01:02.7]} 26. Nb5 {[%clk 0:01:47.7]} 26... Qe7
{[%clk 0:00:56.1]} 27. Qc3 {[%clk 0:01:44.1]} 27... Ncd7 {[%clk 0:00:45.3]} 28.
Nc7 {[%clk 0:01:41.6]} 28... Rc8 {[%clk 0:00:26.4]} 29. Nd5 {[%clk 0:01:39.9]}
29... Qe6 {[%clk 0:00:24.7]} 30. Nxf6+ {[%clk 0:01:34.8]} 30... Qxf6 {[%clk
0:00:25.2]} 31. Qxf6 {[%clk 0:01:34.2]} 31... Nxf6 {[%clk 0:00:26.1]} 32. Bxf6
{[%clk 0:01:34.6]} 32... Rxc4 {[%clk 0:00:26.8]} 33. Rd1 {[%clk 0:01:27.6]}
33... Rc2 {[%clk 0:00:23.2]} 34. Bf1 {[%clk 0:01:24.8]} 34... d2 {[%clk
0:00:21]} 35. Be2 {[%clk 0:01:22.3]} 35... Rc6 {[%clk 0:00:08.7]} 36. Bd4 {[%clk
0:01:19.9]} 36... Re6 {[%clk 0:00:07]} 37. Be3 {[%clk 0:01:19.4]} 37... Be4
{[%clk 0:00:04.3]} 38. Rxd2 {[%clk 0:01:15.4]} 38... b6 {[%clk 0:00:04.8]} 39.
f4 {[%clk 0:01:12.5]} 39... gxf4 {[%clk 0:00:04.3]} 40. Bxf4 {[%clk 0:01:12.3]}
40... Kg7 {[%clk 0:00:04.2]} 41. Kf2 {[%clk 0:01:11.9]} 41... Bc6 {[%clk
0:00:03.8]} 42. Rd6 {[%clk 0:01:06.7]} 42... Rxd6 {[%clk 0:00:03.8]} 43. Bxd6
{[%clk 0:01:07.6]} 43... Bd7 {[%clk 0:00:04.4]} 44. h4 {[%clk 0:01:06.1]} 44...
f6 {[%clk 0:00:03.3]} 45. Bb8 {[%clk 0:01:05.9]} 1-0